[Event "Thailand Pattaya Open 2018"]
[Site "Pattaya"]
[Date "2018.10.29"]
[Round "7"]
[White "Villamayor, Buenaventura"]
[Black "Habla, Jony"]
[Result "1-0"]
[ECO "A25"]
[WhiteElo "2403"]
[BlackElo "2170"]
[Annotator "NA"]
[PlyCount "117"]
[EventDate "2018.10.24"]
[EventType "swiss"]
[EventCountry "THA"]
[SourceTitle "playchess.com"]
[Source "ChessBase"]
[SourceQuality "1"]
[TimeControl "5400+30"]

1. c4 {[%emt 0:00:00]} e5 {[%emt 0:00:00]} 2. g3 {[%emt 0:00:01]} Nf6 {[%emt 0:00:00]} 3. Bg2 {[%emt 0:00:23]} Nc6 {[%emt 0:00:31]} 4. Nc3 {[%emt 0:00:22]} Bb4 {[%emt 0:00:57]} 5. Nd5 {[%emt 0:00:07]} Be7 {[%emt 0:00:19]} 6. e3 {[%emt 0:01:19]} O-O {[%emt 0:00:19]} 7. Ne2 {[%emt 0:00:45]} d6 {[%emt 0:01:45]} 8. O-O {[%emt 0:02:26]} Re8 {[%emt 0:00:38]} 9. d3 {[%emt 0:02:36]} Bd7 {[%emt 0:12:53]} 10. h3 {[%emt 0:03:51]} h6 {[%emt 0:07:33]} 11. e4 {[%emt 0:02:20]} a5 {[%emt 0:08:57]} 12. Be3 {[%emt 0:03:05]} Nb4 {[%emt 0:04:47]} 13. Nxe7+ {[%emt 0:16:27]} Qxe7 {[%emt 0:01:09]} 14. Nc3 {[%emt 0:00:07]} Reb8 {[%emt 0:12:44]} 15. Qd2 {[%emt 0:08:10]} a4 {[%emt 0:06:44]} 16. Kh2 {[%emt 0:17:57]} c5 {[%emt 0:05:01]} 17. f4 {[%emt 0:05:29]} a3 {[%emt 0:05:29]} 18. b3 {[%emt 0:02:41]} Ra6 {[%emt 0:00:28]} 19. Nd5 {[%emt 0:02:51]} Nfxd5 {[%emt 0:00:27]} 20. cxd5 {[%emt 0:01:03]} Bb5 {[%emt 0:01:16]} 21. fxe5 {[%emt 0:01:11]} dxe5 {[%emt 0:06:13]} 22. Rfc1 {[%emt 0:00:37]} b6 {[%emt 0:00:21]} 23. Bf1 {[%emt 0:01:44]} Kh7 {[%emt 0:00:57]} 24. Be2 {[%emt 0:00:57]} Ra7 {[%emt 0:02:41]} 25. Rf1 {[%emt 0:00:23]} Rd8 {[%emt 0:00:52]} 26. Rf5 {[%emt 0:01:47]} f6 {[%emt 0:01:30]} 27. Raf1 {[%emt 0:00:37]} Rd6 {[%emt 0:00:42]} 28. R5f3 {[%emt 0:03:22]} Qd8 {[%emt 0:18:47]} 29. g4 {[%emt 0:09:03]} Rc7 {[%emt 0:00:00]} 30. h4 {[%emt 0:00:58]} g5 {[%emt 0:00:00]} 31. Rh3 {[%emt 0:03:59]} Kg8 {[%emt 0:00:00]} 32. Kg2 {[%emt 0:01:52]} Rg7 {[%emt 0:00:00]} 33. Rfh1 {[%emt 0:01:38]} Rg6 {[%emt 0:00:00]} 34. Bf1 {[%emt 0:02:47]} Qd7 {[%emt 0:00:00]} 35. Be2 {[%emt 0:01:13]} Ba6 {[%emt 0:00:00]} 36. Bf2 {[%emt 0:00:45]} Bb7 {[%emt 0:00:00]} 37. hxg5 {[%emt 0:01:15]} fxg5 {[%emt 0:00:00]} 38. Bg3 {[%emt 0:00:18]} Nxd5 {[%emt 0:00:00]} 39. exd5 {[%emt 0:00:58]} Rxd5 {[%emt 0:00:29]} 40. Kg1 {[%emt 0:00:52]} e4 {[%emt 0:01:45]} 41. Rxh6 {[%emt 0:00:35]} Rxh6 {[%emt 0:00:15]} 42. Rxh6 {[%emt 0:00:01]} Qg7 {[%emt 0:01:30]} 43. Rh5 {[%emt 0:00:40]} Ba6 {[%emt 0:00:45]} 44. Qe3 {[%emt 0:00:46]} Bxd3 {[%emt 0:00:30]} 45. Bxd3 {[%emt 0:01:11]} Rxd3 {[%emt 0:00:01]} 46. Qxe4 {[%emt 0:00:09]} Qd4+ {[%emt 0:03:07]} 47. Qxd4 {[%emt 0:00:03]} cxd4 {[%emt 0:00:36]} 48. Rxg5+ {[%emt 0:00:05]} Kh7 {[%emt 0:00:18]} 49. Bf2 {[%emt 0:01:10]} Rd1+ {[%emt 0:00:16]} 50. Kg2 {[%emt 0:00:04]} Rd2 {[%emt 0:00:17]} 51. Rb5 {[%emt 0:01:20]} Rxa2 {[%emt 0:00:15]} 52. Rxb6 {[%emt 0:00:02]} d3 {[%emt 0:00:25]} 53. Kf3 {[%emt 0:01:28]} d2 {[%emt 0:00:48]} 54. Rd6 {[%emt 0:00:37]} Rb2 {[%emt 0:00:30]} 55. g5 {[%emt 0:00:01]} a2 {[%emt 0:00:46]} 56. g6+ {[%emt 0:00:02]} Kh6 {[%emt 0:00:28]} 57. Be3+ {[%emt 0:00:01]} Kh5 {[%emt 0:00:22]} 58. g7 {[%emt 0:02:29]} d1=Q+ {[%emt 0:00:38]} 59. Rxd1 {[%emt 0:00:00]} 1-0

[Event "Thailand Pattaya Open 2018"]
[Site "Pattaya"]
[Date "2018.10.29"]
[Round "7"]
[White "Chan, Yi Meng Ryan"]
[Black "Duong, The Anh"]
[Result "0-1"]
[ECO "E15"]
[WhiteElo "1938"]
[BlackElo "2307"]
[Annotator "NA"]
[PlyCount "48"]
[EventDate "2018.10.24"]
[EventType "swiss"]
[EventCountry "THA"]
[SourceTitle "playchess.com"]
[Source "ChessBase"]
[SourceQuality "1"]
[TimeControl "5400+30"]

1. d4 {[%emt 0:03:09]} Nf6 {[%emt 0:01:34]} 2. c4 {[%emt 0:00:32]} e6 {[%emt 0:00:10]} 3. Nf3 {[%emt 0:00:08]} b6 {[%emt 0:00:32]} 4. g3 {[%emt 0:00:30]} Ba6 {[%emt 0:00:40]} 5. Qc2 {[%emt 0:00:27]} c5 {[%emt 0:01:49]} 6. d5 {[%emt 0:00:39]} exd5 {[%emt 0:03:15]} 7. cxd5 {[%emt 0:00:09]} Bb7 {[%emt 0:00:52]} 8. Bg2 {[%emt 0:01:43]} Nxd5 {[%emt 0:01:53]} 9. O-O {[%emt 0:00:27]} Nc6 {[%emt 0:02:26]} 10. Rd1 {[%emt 0:11:26]} Be7 {[%emt 0:03:49]} 11. Qf5 {[%emt 0:06:35]} Nf6 {[%emt 0:06:29]} 12. e4 {[%emt 0:08:17]} g6 {[%emt 0:11:34]} 13. Qf4 {[%emt 0:00:13]} Nh5 {[%emt 0:07:08]} 14. Qd2 {[%emt 0:06:11]} O-O {[%emt 0:08:08]} 15. Nc3 {[%emt 0:16:50]} d6 {[%emt 0:05:41]} 16. Qh6 {[%emt 0:12:26]} f6 {[%emt 0:03:46]} 17. e5 {[%emt 0:06:49]} fxe5 {[%emt 0:08:55]} 18. Ng5 {[%emt 0:04:56]} Bxg5 {[%emt 0:01:18]} 19. Bxg5 {[%emt 0:00:03]} Qd7 {[%emt 0:01:49]} 20. g4 {[%emt 0:07:04]} Qxg4 {[%emt 0:03:16]} 21. Nd5 {[%emt 0:06:01]} Rf7 {[%emt 0:03:21]} 22. Ne3 {[%emt 0:00:36]} Qd7 {[%emt 0:00:57]} 23. Bd5 {[%emt 0:00:14]} Nd4 {[%emt 0:01:26]} 24. Bxf7+ {[%emt 0:02:28]} Qxf7 {[%emt 0:00:27]} 0-1

[Event "Thailand Pattaya Open 2018"]
[Site "Pattaya"]
[Date "2018.10.30"]
[Round "8"]
[White "Duong, The Anh"]
[Black "Villamayor, Buenaventura"]
[Result "1/2-1/2"]
[ECO "A46"]
[WhiteElo "2307"]
[BlackElo "2403"]
[Annotator "RC"]
[PlyCount "117"]
[EventDate "2018.10.24"]
[EventType "swiss"]
[EventCountry "THA"]
[SourceTitle "playchess.com"]
[Source "ChessBase"]
[SourceQuality "1"]
[TimeControl "5400+30"]

1. d4 {[%emt 0:00:00]} e6 {[%emt 0:00:55]} 2. Nf3 {[%emt 0:00:19]} c5 {[%emt 0:02:59]} 3. c3 {[%emt 0:06:14]} Nf6 {[%emt 0:00:48]} 4. Bg5 {[%emt 0:00:31]} h6 {[%emt 0:01:01]} 5. Bh4 {[%emt 0:00:42]} cxd4 {[%emt 0:03:10]} 6. Nxd4 {[%emt 0:05:17]} Be7 {[%emt 0:02:38]} 7. Nd2 {[%emt 0:01:10]} d5 {[%emt 0:02:01]} 8. e3 {[%emt 0:01:19]} O-O {[%emt 0:01:25]} 9. Bg3 {[%emt 0:00:27]} Nbd7 {[%emt 0:03:47]} 10. Be2 {[%emt 0:02:26]} Re8 {[%emt 0:05:23]} 11. O-O {[%emt 0:01:48]} Nc5 {[%emt 0:08:06]} 12. c4 {[%emt 0:08:27]} Nfe4 {[%emt 0:10:55]} 13. Nxe4 {[%emt 0:01:08]} Nxe4 {[%emt 0:00:04]} 14. cxd5 {[%emt 0:01:47]} Nxg3 {[%emt 0:00:42]} 15. hxg3 {[%emt 0:00:09]} Qxd5 {[%emt 0:03:23]} 16. Bf3 {[%emt 0:04:46]} Qa5 {[%emt 0:05:21]} 17. Qc2 {[%emt 0:04:03]} Rb8 {[%emt 0:11:36]} 18. Rfd1 {[%emt 0:05:03]} Qb6 {[%emt 0:22:11]} 19. Rac1 {[%emt 0:04:47]} Rd8 {[%emt 0:02:12]} 20. Qb3 {[%emt 0:11:54]} Qxb3 {[%emt 0:00:46]} 21. Nxb3 {[%emt 0:00:19]} Rxd1+ {[%emt 0:00:45]} 22. Rxd1 {[%emt 0:01:03]} Kf8 {[%emt 0:00:42]} 23. Na5 {[%emt 0:00:44]} Ke8 {[%emt 0:01:19]} 24. Nc4 {[%emt 0:00:54]} Bd7 {[%emt 0:03:59]} 25. Nd6+ {[%emt 0:05:29]} Bxd6 {[%emt 0:00:06]} 26. Rxd6 {[%emt 0:00:08]} b6 {[%emt 0:02:17]} 27. Bc6 {[%emt 0:08:42]} Bxc6 {[%emt 0:00:11]} 28. Rxc6 {[%emt 0:00:06]} Rd8 {[%emt 0:00:04]} 29. Rc2 {[%emt 0:04:46]} Rd1+ {[%emt 0:00:03]} 30. Kh2 {[%emt 0:00:08]} h5 {[%emt 0:00:09]} 31. g4 {[%emt 0:01:23]} hxg4 {[%emt 0:00:29]} 32. Kg3 {[%emt 0:00:07]} f5 {[%emt 0:01:07]} 33. Kf4 {[%emt 0:01:03]} Kd7 {[%emt 0:01:53]} 34. Kg5 {[%emt 0:01:10]} Rg1 {[%emt 0:00:31]} 35. g3 {[%emt 0:00:32]} Rg2 {[%emt 0:00:08]} 36. Rd2+ {[%emt 0:02:01]} Ke7 {[%emt 0:00:33]} 37. Kg6 {[%emt 0:01:50]} a5 {[%emt 0:01:17]} 38. b3 {[%emt 0:01:49]} Rh2 {[%emt 0:00:35]} 39. Kg5 {[%emt 0:03:32]} b5 {[%emt 0:01:04]} 40. Kg6 {[%emt 0:01:13]} a4 {[%emt 0:00:37]} 41. bxa4 {[%emt 0:00:24]} bxa4 {[%emt 0:00:01]} 42. a3 {[%emt 0:00:24]} Rg2 {[%emt 0:01:15]} 43. Kg5 {[%emt 0:00:10]} Rg1 {[%emt 0:00:22]} 44. Rd4 {[%emt 0:01:32]} Rf1 {[%emt 0:01:12]} 45. Rxa4 {[%emt 0:04:13]} Rxf2 {[%emt 0:00:05]} 46. e4 {[%emt 0:01:05]} g6 {[%emt 0:01:16]} 47. Kxg6 {[%emt 0:04:16]} f4 {[%emt 0:01:08]} 48. e5 {[%emt 0:00:46]} fxg3 {[%emt 0:00:55]} 49. Rxg4 {[%emt 0:00:10]} g2 {[%emt 0:00:08]} 50. Rg3 {[%emt 0:02:08]} Kd7 {[%emt 0:00:34]} 51. Kh5 {[%emt 0:00:28]} Kc6 {[%emt 0:00:34]} 52. Kh4 {[%emt 0:00:29]} Kd5 {[%emt 0:00:36]} 53. Kh3 {[%emt 0:00:24]} Ra2 {[%emt 0:00:11]} 54. Rxg2 {[%emt 0:00:41]} Rxa3+ {[%emt 0:00:02]} 55. Kg4 {[%emt 0:00:19]} Re3 {[%emt 0:01:18]} 56. Kf4 {[%emt 0:00:25]} Re4+ {[%emt 0:00:02]} 57. Kf3 {[%emt 0:00:11]} Kxe5 {[%emt 0:00:19]} 58. Ra2 {[%emt 0:00:28]} Kf5 {[%emt 0:00:54]} 59. Ra5+ {[%emt 0:00:27] Ke5 Kxe4+*} 1/2-1/2